lending/lending_fUSD_20240610
["ID","MTS","AMOUNT","RATE_DAILY","PERIOD"]
[328958960,1718029865307,-500.0,0.00029041,4]
[328958961,1718029865318,-500.0,0.00029041,4]
[328958962,1718029865328,-500.0,0.00029041,4]
[328958963,1718029865338,-500.0,0.00029041,4]
[328958964,1718029865349,-500.0,0.00029041,4]
[328958965,1718029865362,-500.0,0.00029041,4]
[328958966,1718029865373,-500.0,0.00029041,4]
[328958967,1718029865384,-500.0,0.00029041,4]
[328958968,1718029865394,-500.0,0.00029041,4]
[328958969,1718029865404,-500.0,0.00029041,4]
[328958970,1718029865415,-500.0,0.00029041,4]
[328958971,1718029865424,-500.0,0.00029041,4]
[328958972,1718029865434,-168.50322658,0.00029041,4]
[328958973,1718029865444,-500.0,0.00029041,4]
[328958974,1718029865455,-505.94522343,0.00029041,4]
[328958975,1718029865465,-500.0,0.00029041,4]
[328958976,1718029865481,-500.0,0.00029041,4]
[328958977,1718029865491,-500.0,0.00029041,4]
[328958978,1718029865500,-500.0,0.00029041,4]
[328958979,1718029865510,-500.0,0.00029041,4]
[328958980,1718029865519,-500.0,0.00029041,4]
[328958981,1718029865529,-500.0,0.00029041,4]
[328958982,1718029865538,-500.0,0.00029041,4]
[328958983,1718029865548,-500.0,0.00029041,4]
[328958984,1718029865558,-500.0,0.00029041,4]
[328958985,1718029865568,-500.0,0.00029041,4]
[328958986,1718029865578,-500.0,0.00029041,4]
[328958987,1718029865588,-324.43440616,0.00029041,4]
[328958988,1718029865598,-649.18864731,0.00029041,4]
[328958989,1718029865607,-500.0,0.00029041,4]
[328958990,1718029865618,-500.0,0.00029041,4]
[328958991,1718029865627,-500.0,0.00029041,4]
[328958992,1718029865638,-513.53071159,0.00029041,4]
[328958993,1718029865647,-418.5,0.00029041,4]
[328958994,1718029865657,-500.0,0.00029041,4]
[328958995,1718029865668,-500.0,0.00029041,4]
[328958996,1718029865677,-164.74156544,0.00029041,4]
[328958997,1718029865828,-509.7674813,0.00029041,4]
[328958998,1718029865839,-500.0,0.00029041,4]
[328958999,1718029865850,-500.0,0.00029041,4]
[328959000,1718029865864,-500.0,0.00029041,4]
[328959001,1718029865875,-500.0,0.00029041,4]
[328959002,1718029865885,-500.0,0.00029041,4]
[328959003,1718029865894,-500.0,0.00029041,4]
[328959004,1718029865906,-500.0,0.00029041,4]
[328959005,1718029865916,-500.0,0.00029041,4]
[328959006,1718029865927,-500.0,0.00029041,4]
[328959007,1718029865937,-500.0,0.00029041,4]
[328959008,1718029865947,-500.0,0.00029041,4]
[328959009,1718029865957,-500.0,0.00029041,4]
[328959010,1718029865970,-500.0,0.00029041,4]
[328959011,1718029865980,-151.0,0.00029041,7]
[328959012,1718029865989,-500.0,0.00029041,4]
[328959013,1718029865999,-500.0,0.00029041,4]
[328959014,1718029866008,-500.0,0.00029041,4]
[328959015,1718029866018,-307.18872239,0.00029041,4]
[328959016,1718029866028,-500.0,0.00029041,4]
[328959017,1718029866037,-151.0,0.00029041,7]
[328959018,1718029866047,-500.0,0.00029041,4]
[328959019,1718029866058,-500.0,0.00029041,4]
[328959020,1718029866068,-500.0,0.00029041,4]
[328959021,1718029866078,-500.0,0.00029041,4]
[328959022,1718029866088,-500.0,0.00029041,4]
[328959023,1718029866098,-151.0,0.00029041,7]
[328959024,1718029866108,-500.0,0.00029041,4]
[328959025,1718029866118,-500.0,0.00029041,4]
[328959026,1718029866127,-500.0,0.00029041,4]
[328959027,1718029866137,-526.78912126,0.00029041,4]
[328959028,1718029866147,-483.2,0.00029041,4]
[328959029,1718029866158,-151.0,0.00029041,7]
[328959030,1718029866168,-151.0,0.00029041,7]
[328959031,1718029866178,-629.73307982,0.00029041,4]
[328959032,1718029866188,-500.0,0.00029041,4]
[328959033,1718029866199,-184.66,0.00029041,4]
[328959034,1718029866209,-151.0,0.00029041,7]
[328959035,1718029866221,-500.0,0.00029041,4]
[328959036,1718029866231,-168.804241,0.00029041,7]
[328959037,1718029866241,-500.0,0.00029041,4]
[328959038,1718029866251,-500.0,0.00029041,4]
[328959039,1718029866260,-500.0,0.00029041,4]
[328959040,1718029866271,-500.0,0.00029041,4]
[328959041,1718029866282,-500.0,0.00029041,4]
[328959042,1718029866292,-500.0,0.00029041,4]
[328959043,1718029866302,-500.0,0.00029041,4]
[328959044,1718029866312,-508.58823014,0.00029041,4]
[328959045,1718029866323,-533.26167161,0.00029041,4]
[328959046,1718029866333,-500.0,0.00029041,4]
[328959047,1718029866343,-500.0,0.00029041,4]
[328959048,1718029866353,-500.0,0.00029041,4]
[328959049,1718029866363,-591.53043269,0.00029041,4]
[328959050,1718029866373,-500.0,0.00029041,4]
[328959051,1718029866383,-500.0,0.00029041,4]
[328959052,1718029866393,-500.0,0.00029041,4]
[328959053,1718029866402,-500.0,0.00029041,4]
[328959054,1718029866412,-500.0,0.00029041,4]
[328959055,1718029866422,-500.0,0.00029041,4]
[328959056,1718029866432,-500.0,0.00029041,4]
[328959057,1718029866442,-500.0,0.00029041,4]
[328959058,1718029866452,-500.0,0.00029041,4]
[328959059,1718029866462,-500.0,0.00029041,4]
[328959060,1718029866474,-500.0,0.00029041,4]
[328959061,1718029866484,-500.0,0.00029041,4]
[328959062,1718029866494,-500.0,0.00029041,4]
[328959063,1718029866505,-500.0,0.00029041,4]
[328959064,1718029866515,-531.90454287,0.00029041,4]
[328959065,1718029866525,-500.0,0.00029041,4]
[328959066,1718029866535,-500.0,0.00029041,4]
[328959067,1718029866545,-500.0,0.00029041,4]
[328959068,1718029866555,-554.1,0.00029041,4]
[328959069,1718029866565,-500.0,0.00029041,4]
[328959070,1718029866576,-500.0,0.00029041,4]
[328959071,1718029866585,-500.0,0.00029041,4]
[328959072,1718029866596,-500.0,0.00029041,4]
[328959073,1718029866606,-500.0,0.00029041,4]
[328959074,1718029866616,-500.0,0.00029041,4]
[328959075,1718029866626,-500.0,0.00029041,4]
[328959076,1718029866637,-500.0,0.00029041,4]
[328959077,1718029866647,-287.1966544,0.00029041,4]
[328959078,1718029866657,-500.0,0.00029041,4]
[328959079,1718029866668,-500.0,0.00029041,4]
[328959080,1718029866678,-500.0,0.00029041,4]
[328959081,1718029866689,-500.60239646,0.00029041,4]
[328959082,1718029866699,-500.0,0.00029041,4]
[328959083,1718029866709,-500.0,0.00029041,4]
[328959084,1718029866720,-500.0,0.00029041,4]
[328959085,1718029866730,-500.0,0.00029041,4]
[328959086,1718029866740,-500.0,0.00029041,4]
[328959087,1718029866750,-500.0,0.00029041,4]
[328959088,1718029866760,-500.0,0.00029041,4]
[328959089,1718029866770,-500.0,0.00029041,4]
[328959090,1718029866780,-500.0,0.00029041,4]
[328959091,1718029866790,-500.0,0.00029041,4]
[328959092,1718029866801,-500.0,0.00029041,4]
[328959093,1718029866810,-500.0,0.00029041,4]
[328959094,1718029866820,-500.0,0.00029041,4]
[328959095,1718029866830,-500.0,0.00029041,4]
[328959096,1718029866840,-639.0163589,0.00029041,4]
[328959097,1718029866849,-500.0,0.00029041,4]
[328959098,1718029866864,-500.0,0.00029041,4]
[328959099,1718029866874,-500.0,0.00029041,4]
[328959100,1718029866883,-500.0,0.00029041,4]
[328959101,1718029866895,-500.0,0.00029041,4]
[328959102,1718029866905,-500.0,0.00029041,4]
[328959103,1718029866915,-500.0,0.00029041,4]
[328959104,1718029866925,-500.0,0.00029041,4]
[328959105,1718029866936,-557.19065392,0.00029041,4]
[328959106,1718029866946,-480.75497505,0.00029041,4]
[328959107,1718029866956,-500.0,0.00029041,4]
[328959108,1718029866966,-500.0,0.00029041,4]
[328959109,1718029866980,-500.0,0.00029041,4]
[328959110,1718029866989,-500.0,0.00029041,4]
[328959111,1718029866999,-151.0,0.00029041,7]
[328959112,1718029867009,-625.07222163,0.00029041,4]
[328959113,1718029867019,-378.78,0.00029041,4]
[328959114,1718029867029,-565.1259486,0.00029041,4]
[328959115,1718029867039,-151.0,0.00029041,7]
[328959116,1718029867048,-500.0,0.00029041,4]
[328959117,1718029867058,-151.0,0.00029041,7]
[328959118,1718029867067,-500.0,0.00029041,4]
[328959119,1718029867077,-151.0,0.00029041,7]
[328959120,1718029867087,-558.45620306,0.00029041,4]
[328959121,1718029867097,-500.0,0.00029041,4]
[328959122,1718029867107,-215.792131,0.00029041,7]
[328959123,1718029867117,-515.568085,0.00029041,4]
[328959124,1718029867126,-500.0,0.00029041,4]
[328959125,1718029867136,-500.0,0.00029041,4]
[328959126,1718029867145,-500.0,0.00029041,4]
[328959127,1718029867155,-500.0,0.00029041,4]
[328959128,1718029867165,-500.0,0.00029041,4]
[328959129,1718029867175,-500.0,0.00029041,4]
[328959130,1718029867185,-500.0,0.00029041,4]
[328959131,1718029867194,-500.0,0.00029041,4]
[328959132,1718029867204,-500.0,0.00029041,4]
[328959133,1718029867214,-500.0,0.00029041,4]
[328959134,1718029867227,-500.0,0.00029041,4]
[328959135,1718029867236,-500.0,0.00029041,4]
[328959136,1718029867246,-151.0,0.00029041,7]
[328959137,1718029867255,-500.0,0.00029041,4]
[328959138,1718029867265,-500.0,0.00029041,4]
[328959139,1718029867275,-500.0,0.00029041,4]
[328959140,1718029867285,-500.0,0.00029041,4]
[328959141,1718029867295,-500.0,0.00029041,4]
[328959142,1718029867305,-500.0,0.00029041,4]
[328959143,1718029867315,-151.0,0.00029041,7]
[328959144,1718029867325,-500.0,0.00029041,4]
[328959145,1718029867335,-500.0,0.00029041,4]
[328959146,1718029867345,-151.0,0.00029041,7]
[328959147,1718029867355,-500.0,0.00029041,4]
[328959148,1718029867365,-500.0,0.00029041,4]
[328959149,1718029867375,-153.195828,0.00029041,7]
[328959150,1718029867385,-566.79956305,0.00029041,4]
[328959151,1718029867395,-319.97145693,0.00029041,4]
[328959152,1718029867792,-180.02854307,0.00029041,4]
[328959153,1718029867802,-328.25833255,0.00029041,4]
[328959154,1718029867815,-171.74166745,0.00029041,4]
[328959155,1718029867826,-500.0,0.00029041,4]
[328959156,1718029867835,-500.0,0.00029041,4]
[328959157,1718029867846,-500.0,0.00029041,4]
[328959158,1718029867859,-500.0,0.00029041,4]
[328959159,1718029867869,-417.18770361,0.00029041,4]
[328959160,1718029867883,-82.81229639,0.00029041,4]
[328959161,1718029867894,-500.0,0.00029041,4]
[328959162,1718029867904,-500.0,0.00029041,4]
[328959163,1718029867914,-500.0,0.00029041,4]
[328959164,1718029867924,-500.0,0.00029041,4]
[328959165,1718029867938,-500.0,0.00029041,4]
[328959166,1718029867948,-563.5647189,0.00029041,4]
[328959167,1718029867959,-500.0,0.00029041,4]
[328959168,1718029867970,-558.20996849,0.00029041,4]
[328959169,1718029867981,-386.531231,0.00029041,4]
[328959170,1718029867991,-500.0,0.00029041,4]
[328959171,1718029868001,-500.0,0.00029041,4]
[328959172,1718029868012,-500.0,0.00029041,4]
[328959173,1718029868022,-500.0,0.00029041,4]
[328959174,1718029868031,-508.80773635,0.00029041,4]
[328959175,1718029868041,-255.89567519,0.00029041,4]
[328959176,1718029868060,-283.81113296,0.00029041,4]
[328959177,1718029868070,-184.38697752,0.00029041,4]
[328959178,1718029868082,-315.61302248,0.00029041,4]
[328959179,1718029868092,-500.0,0.00029041,4]
[328959180,1718029868102,-500.0,0.00029041,4]
[328959181,1718029868112,-500.0,0.00029041,4]
[328959182,1718029868121,-37.31694794,0.00029041,4]
[328959183,1718029868348,-0.111543,0.00021779,2]
[328959184,1718029868360,-226.58490822,0.00021779,2]
[328959185,1718029868370,-201.61319405,0.0002904,2]
[328959186,1718029868380,-151.18677041,0.0002904,2]
[328959187,1718030044875,2841.49408126,0.000118,2]
[328959188,1718030070373,195.91472603,6.94e-05,2]
[328959190,1718030157722,498.84487108,6.94e-05,2]
[328959191,1718030165729,16000.0,6.94e-05,2]
[328959192,1718030204140,188.55672582,0.00012458,2]
[328959194,1718030293017,155.0,0.00012598,2]
[328959195,1718030332953,3608.33147843,0.00012458,2]
[328959196,1718030353700,192.12214025,0.00012458,2]
[328959201,1718030577876,946.09,0.00012041,2]
[328959202,1718030834206,-1302.51706264,0.0001333,2]
[328959203,1718030834229,-528.49267838,0.00013331,2]
[328959204,1718030834255,-4615.31940654,0.00013331,2]
[328959205,1718030834279,-238.21449077,0.00013332,2]
[328959206,1718030834303,-531.47230708,0.00013332,2]
[328959207,1718030834327,-316.86419262,0.00013332,2]
[328959208,1718030834351,-4544.42459731,0.00013332,2]
[328959209,1718030952738,-250.0,0.0001308,2]
[328959210,1718030952762,-155.0,0.00013291,2]
[328959211,1718030952785,-267.31376338,0.00013292,2]
[328959212,1718030952809,-626.22089567,0.00013293,2]
[328959213,1718030952833,-531.47230708,0.00013293,2]
[328959214,1718030952856,-536.37434974,0.00013293,2]
[328959215,1718030952881,-528.49267838,0.00013294,2]
[328959216,1718030952904,-1277.25177394,0.00013294,2]
[328959217,1718030952927,-659.07845299,0.00013295,2]
[328959218,1718030952955,-300.0,0.00013297,2]
[328959219,1718030952979,-821.49427359,0.00013298,2]
[328959220,1718030953005,-16080.34565252,0.00013331,2]
[328959221,1718030953027,-150.0,0.00013342,2]
[328959222,1718030953202,-426.4888,0.00013393,2]
[328959223,1718030953233,-150.0,0.00013428,2]
[328959224,1718030953259,-200.0,0.00013429,2]
[328959225,1718030953285,-1050.41,0.00013429,2]
[328959226,1718030953311,-499.99,0.00013429,2]
[328959227,1718030953335,-516.62800356,0.00013446,2]
[328959228,1718030953361,-7573.43904915,0.00013447,2]
[328959257,1718031038528,-625.18776643,0.00013438,2]
[328959258,1718031038538,-300.0,0.00013446,2]
[328959261,1718031038549,-16326.56095085,0.00013447,2]
[328959264,1718031038559,-2370.77689173,0.00013498,2]
[328959269,1718031038569,-1000.0,0.000135,2]
[328959272,1718031038579,-250.0,0.00013683,2]
[328959275,1718031038589,-175.37943346,0.000139,2]
[328959276,1718031038599,-634.92505336,0.000139,2]
[328959277,1718031038609,-334.86594169,0.000139,2]
[328959278,1718031038619,-627.99,0.00013942,2]
[328959279,1718031038629,-150.0,0.00013971,2]
[328959280,1718031038640,-436.8844913,0.00013985,2]
[328959281,1718031038649,-169.95723608,0.0001399,2]
[328959282,1718031038659,-152.42,0.0001399,2]
[328959283,1718031038669,-152.42,0.0001399,2]
[328959284,1718031038679,-203.22397097,0.00013998,2]
[328959285,1718031038689,-162.49238413,0.00013998,2]
[328959286,1718031038698,-223.16183437,0.00013998,2]
[328959287,1718031038710,-2216.62017205,0.00013998,2]
[328959288,1718031038720,-238.00335402,0.00013998,2]
[328959289,1718031038730,-437.68428679,0.00013998,2]
[328959290,1718031038740,-186.93607384,0.00013998,2]
[328959291,1718031038751,-275.7718618,0.00013998,2]
[328959292,1718031038761,-459.76307827,0.00013998,2]
[328959293,1718031038772,-1276.54298382,0.00013998,2]
[328959294,1718031038782,-691.13880026,0.00013998,2]
[328959295,1718031038793,-286.66632107,0.00013998,2]
[328959296,1718031038802,-183.41844134,0.00013998,2]
[328959297,1718031038813,-542.00347646,0.00013998,2]
[328959298,1718031038823,-429.67014915,0.00013999,2]
[328959299,1718031038833,-5071.7116379,0.00013999,2]
[328959300,1718031038843,-41635.95085536,0.00014,2]
[328959301,1718031038988,-876.93466184,0.00014,2]
[328959302,1718031039003,-4852.6012,0.00014,2]
[328959303,1718031039016,-15215.26684458,0.00014,2]
[328959304,1718031039034,-46592.38136336,0.00014,2]
[328959305,1718031039047,-1513.35868036,0.00014,2]
[328959306,1718031039060,-287.37338502,0.00014,2]
[328959307,1718031039073,-709199.17393052,0.00014,2]
[328959308,1718031039087,-2163.11819766,0.00014,2]
[328959309,1718031039100,-259.1,0.00014,2]
[328959310,1718031039113,-4167.9,0.00014,2]
[328959311,1718031039126,-3569.05638,0.00014,2]
[328959312,1718031039138,-4712.18710168,0.00014,2]
[328959313,1718031039151,-6287.21120919,0.00014,2]
[328959314,1718031039163,-51482.90000017,0.00014,2]
[328959315,1718031039175,-411334.44278532,0.00014,2]
[328959316,1718031039617,-1397.51249802,0.00014,2]
[328959318,1718031039630,-7124.6208,0.00014,2]
[328959321,1718031039642,-24301.16015425,0.00014,2]
[328959322,1718031039655,-11075.88158624,0.00014,2]
[328959324,1718031039667,-350.91005487,0.00014,2]
[328959326,1718031039681,-724.45,0.00014,2]
[328959328,1718031039694,-587.84,0.00014,2]
[328959330,1718031039709,-51480.76652093,0.00014,2]
[328959332,1718031039722,-1062592.08149373,0.00014,2]
[328959334,1718031039733,-161.84597815,0.00014,2]
[328959336,1718031039744,-17162.82,0.00014,2]
[328959337,1718031039756,-2468.44,0.00014091,2]
[328959339,1718031039767,-176.24870704,0.000141,2]
[328959341,1718031039778,-177.68,0.00014239,2]
[328959343,1718031039789,-946.09,0.00014305,2]
[328959344,1718031039800,-174.51,0.0001442,2]
[328959346,1718031039810,-13342.6392482,0.000145,2]
[328959348,1718031039821,-420.0,0.00014739,2]
[328959350,1718031039832,-210.0,0.00014771,2]
[328959352,1718031039842,-174.15984609,0.000149,2]
[328959354,1718031039853,-172.83,0.00014907,2]
[328959355,1718031039863,-1089.28674519,0.00014968,2]
[328959357,1718031039874,-621.20003601,0.00015,2]
[328959359,1718031039885,-34978.80794722,0.00015,2]
[328959361,1718031039895,-364996.35999837,0.00015,2]
[328959363,1718031039908,-1644.2883817,0.00015,2]
[328959365,1718031039922,-355699.82456903,0.00015,2]
[328959367,1718031039932,-167.31,0.00015068,2]
[328959368,1718031039943,-13342.63924818,0.000159,2]
[328959370,1718031039954,-480.0,0.00016156,2]
[328959372,1718031039964,-12431.0,0.00016189,2]
[328959374,1718031039975,-334.86594169,0.00016567,2]
[328959377,1718031039985,-946.09,0.00016569,2]
[328959379,1718031039995,-2468.44,0.00016831,2]
[328959381,1718031040007,-13342.63924818,0.000173,2]
[328959385,1718031040019,-649.53295488,0.00018,2]
[328959388,1718031040030,-2953.0,0.00018,2]
[328959391,1718031040040,-171.22,0.00018321,2]
[328959394,1718031040050,-13342.63924818,0.000187,2]
[328959396,1718031040061,-946.09,0.00018833,2]
[328959399,1718031040071,-200.0,0.00019053,2]
[328959402,1718031040082,-181.19632456,0.00019178,2]
[328959405,1718031040093,-500.0,0.00019178,2]
[328959408,1718031040104,-418.51191286,0.00019178,2]
[328959411,1718031040115,-500.0,0.00019178,2]
[328959412,1718031040126,-433.78610969,0.00019178,2]
[328959414,1718031040136,-500.0,0.00019178,2]
[328959416,1718031040146,-583.19,0.00019178,2]
[328959418,1718031040156,-500.0,0.00019178,2]
[328959420,1718031040167,-173.9908761,0.00019178,2]
[328959422,1718031040177,-334.86594169,0.00019233,2]
[328959424,1718031040188,-2468.44,0.00019571,2]
[328959425,1718031040198,-1980.83866895,0.0002,2]
[328959427,1718031040209,-258.0384721,0.0002,2]
[328959429,1718031040219,-226.69645122,0.000201,2]
[328959431,1718031040230,-13342.63924818,0.000201,2]
[328959433,1718031040244,-174.51,0.00020188,2]
[328959435,1718031040256,-946.09,0.00021097,2]
[328959437,1718031040266,-13342.63924818,0.000215,2]
[328959438,1718031040278,-334.86594169,0.000219,2]
[328959440,1718031040288,-397.13,0.00021918,2]
[328959442,1718031040298,-250.0,0.00021918,2]
[328959444,1718031040308,-170.0,0.00022,2]
[328959446,1718031040322,-1089.28674517,0.00022234,2]
[328959448,1718031040333,-1500.0,0.000226,5]
[328959450,1718031040344,-13342.63924818,0.000229,2]
[328959451,1718031040354,-170.0,0.00023014,2]
[328959453,1718031040365,-800.0,0.00023205,2]
[328959455,1718031040375,-549.50595062,0.00023232,2]
[328959457,1718031040387,-946.09,0.00023361,2]
[328959459,1718031040398,-9992.38439003,0.000236,2]
[328959461,1718031040408,-4181.4538386,0.0002381,2]
[328959463,1718031040418,-17678.68073313,0.00024,3]
[328959465,1718031040431,-5094.4426917,0.00024,3]
[328959467,1718031040444,-696.70601,0.00024,3]
[328959469,1718031040457,-1930.20400759,0.00024,3]
[328959471,1718031040469,-375.74916803,0.00024,3]
[328959661,1718031042740,-1641.30252,0.00024,3]
[328959715,1718031043267,-17769.43979677,0.00024,3]
[328959717,1718031043281,-3364.15,0.00024,3]
[328959719,1718031043294,-1251.33586428,0.00024,3]
[328959722,1718031043306,-735.7599988,0.00024,3]
[328959725,1718031043320,-3017.256,0.00024,3]
[328959729,1718031043334,-3380.424834,0.00024,3]
[328959731,1718031043347,-303.27304,0.00024,3]
[328959733,1718031043360,-1937.26644223,0.00024,3]
[328959735,1718031043373,-349.17549305,0.00024,3]
[328959738,1718031043386,-3182.28981085,0.00024,3]
[328959740,1718031043399,-322.85018007,0.00024,3]
[328959776,1718031043761,-506.363244,0.00024,3]
[328959817,1718031044182,-517.03487054,0.00024,3]
[328959819,1718031044194,-5768.71007583,0.00024,3]
[328959821,1718031044204,-4630.38992417,0.000243,2]
[328959823,1718031044216,-1070.68609688,0.000243,2]
[328959826,1718031044229,-346.11167018,0.000243,2]
[328959828,1718031044245,-725.77704884,0.000243,2]
[328959830,1718031044259,-621.92876496,0.000243,2]
[328959833,1718031044272,-478.6711612,0.000243,2]
[328959835,1718031044284,-1581.65470108,0.000243,2]
[328959837,1718031044296,-2429.43547404,0.000243,2]
[328959839,1718031044308,-1457.98440683,0.000243,2]
[328959841,1718031044320,-155.03,0.00024384,2]
[328959843,1718031044331,-168.89,0.00024384,2]
[328959845,1718031044341,-334.86594169,0.00024567,2]
[328959847,1718031044351,-9130.38438462,0.00024798,2]
[328959850,1718031044364,-6479.5163507,0.00024798,2]
[328959852,1718031044374,-15609.90073526,0.00024798,2]
[328959854,1718031044384,-3075.62428302,0.00024798,2]
[328959856,1718031044397,-1324.29662438,0.00024798,2]
[328959858,1718031044409,-921.975,0.00024798,2]
[328959860,1718031044421,-1917.12768533,0.00024798,2]
[328959889,1718031044702,-785.44497192,0.00024798,2]
[328959891,1718031044715,-7585.43217061,0.00024798,2]
[328959893,1718031044725,-14410.27172611,0.00024798,2]
[328960022,1718031045930,-1199.62900915,0.00024798,2]
[328960025,1718031045940,-15609.90073526,0.00024798,2]
[328960028,1718031045950,-7282.73170234,0.00024798,2]
[328960032,1718031045962,-884.040005,0.00024798,2]
[328960035,1718031045975,-7443.12902792,0.00024798,2]
[328960038,1718031045985,-15609.90073526,0.00024798,2]
[328960041,1718031045995,-504.75360809,0.00024799,2]
[328960043,1718031046005,-504.75360807,0.00024799,2]
[328960045,1718031046015,-504.75360807,0.00024799,2]
[328960047,1718031046025,-504.75360807,0.00024799,2]
[328960049,1718031046035,-504.75360807,0.00024799,2]
[328960051,1718031046044,-504.75360807,0.00024799,2]
[328960053,1718031046054,-504.75360807,0.00024799,2]
[328960055,1718031046064,-152.42,0.0002499,2]
[328960057,1718031046074,-706.32929204,0.00025,2]
[328960059,1718031046084,-326.04313189,0.00025,2]
[328960061,1718031046094,-1250.0,0.00025,2]
[328960063,1718031046104,-71407.45358016,0.00025,4]
[328960118,1718031046639,-0.01360445,0.00025,4]
[328960120,1718031046651,-2672.07052477,0.00025,4]
[328960172,1718031047162,-11887.19194107,0.00025,4]
[328960174,1718031047172,-946.09,0.00025625,2]
[328960176,1718031047182,-13342.63924818,0.000257,2]
[328960178,1718031047192,-800.0,0.00025808,2]
[328960180,1718031047201,-1095.614,0.00025826,2]
[328960182,1718031047211,-358.0,0.00025826,2]
[328960184,1718031047221,-1650.0,0.00025826,2]
[328960186,1718031047233,-441.76,0.00025826,2]
[328960188,1718031047248,-619.276,0.00025826,2]
[328960190,1718031047258,-1830.0,0.00025826,2]
[328960192,1718031047267,-446.0,0.00025826,2]
[328960194,1718031047276,-150.0,0.00025826,2]
[328960196,1718031047287,-165.0,0.00025826,2]
[328960198,1718031047297,-809.0,0.00025826,2]
[328960200,1718031047306,-2403.0,0.00025826,2]
[328960202,1718031047317,-1304.0,0.00025826,2]
[328960204,1718031047326,-3176.0,0.00025826,2]
[328960206,1718031047336,-551.88,0.00025826,2]
[328960208,1718031047346,-1978.0,0.00025826,2]
[328960210,1718031047355,-38061.0,0.00025826,2]
[328960212,1718031047365,-605.062,0.00025826,2]
[328960213,1718031047374,-5155.0,0.00025826,2]
[328960215,1718031047383,-445.713,0.00025826,2]
[328960217,1718031047393,-290.0,0.00025826,2]
[328960219,1718031047402,-1065.0,0.00025826,2]
[328960221,1718031047412,-1000.0,0.00025834,2]
[328960223,1718031047422,-653.36,0.00026023,2]
[328960225,1718031047432,-653.36,0.0002603,2]
[328960227,1718031047441,-15609.90073526,0.00026033,2]
[328960229,1718031047451,-155.2962413,0.00026034,2]
[328960231,1718031047462,-653.36,0.00026037,2]
[328960233,1718031047471,-653.36,0.00026044,2]
[328960236,1718031047481,-653.36,0.00026051,2]
[328960237,1718031047491,-653.36,0.00026057,2]
[328960239,1718031047500,-653.36,0.00026064,2]
[328960241,1718031047511,-653.36,0.00026071,2]
[328960243,1718031047521,-653.36,0.00026078,2]
[328960245,1718031047531,-653.36,0.00026085,2]
[328960247,1718031047540,-653.36,0.00026092,2]
[328960249,1718031047550,-504.75360807,0.00026096,2]
[328960251,1718031047560,-653.36,0.00026099,2]
[328960253,1718031047570,-653.36,0.00026105,2]
[328960255,1718031047579,-653.36,0.00026112,2]
[328960257,1718031047590,-653.36,0.00026119,2]
[328960259,1718031047599,-653.36,0.00026126,2]
[328960261,1718031047609,-653.36,0.00026133,2]
[328960263,1718031047618,-653.36,0.0002614,2]
[328960265,1718031047628,-653.36,0.00026147,2]
[328960267,1718031047640,-653.36,0.00026153,2]
[328960268,1718031047649,-155.17093397,0.00026339,2]
[328960269,1718031047659,-151.0,0.00026354,7]
[328960270,1718031047668,-660.09614149,0.00026388,2]
[328960272,1718031047678,-161.3262032,0.00026411,2]
[328960274,1718031047687,-660.09614149,0.00026411,2]
[328960276,1718031047697,-165.86303047,0.00026496,2]
[328960279,1718031047708,-660.09614149,0.00026533,2]